Cogmind - Beta 13 *** ADVENTURER MODE // 2024.04.02 @ 23:38:22 Player: lilya Result: Destroyed by Z-Imprinter with Zionite Laser-M Performance ------------- Evolutions (1) 500 Regions Visited (5) 1000 Robots Destroyed (3) 15 Value Destroyed (115) 115 Prototype IDs (0) 0 Alien Tech Used (0) 0 Bonus (600) 600 TOTAL SCORE: 2230 Bonus ------- Met Imprinter 300 Was Imprinted 300 Cogmind --------- Core Integrity 0/400 Matter 300/300 Energy 99/100 System Corruption 0% Temperature Cool (27) Movement Core (50) Location -7/Deep Caves Parts ------- > --- POWER (1) -------- (None) > --- PROPULSION (3) --- (None) > --- UTILITY (2) ------ (None) > --- WEAPON (3) ------- CR-A16's Pointy Stick > --- INVENTORY (5) ---- Cooling System Compact Battery (200) Makeshift Hacking Suite Makeshift System Shield Peak State ------------ > --- POWER ------------ Ion Engine > --- PROPULSION ------- Aluminum Leg Aluminum Leg Makeshift Leg > --- UTILITY ---------- ECM Suite Hardened Light Armor Plating > --- WEAPON ----------- Light Assault Rifle Grenade Launcher CR-A16's Pointy Stick > --- INVENTORY -------- Coolant Injector Small Storage Unit Compact Battery Makeshift System Shield [Rating: 17] Favorites ----------- Power Ion Engine Engine Ion Engine Propulsion Aluminum Leg Leg Aluminum Leg Wheel Wheel Hover Unit Hover Unit Utility ECM Suite Device ECM Suite Storage Large Storage Unit Protection Hardened Light Armor Plating Weapon Light Assault Rifle Energy Gun Small Laser Ballistic Gun Light Assault Rifle Launcher Grenade Launcher Piercing Weapon CR-A16's Pointy Stick Build | -11 -10 -9 -9 -7 -7 ------- Run | Yrd Mat Mat Min Zio Dee Slots Evolved 2 | . . 2 . . . Power . | . . . . . . Propulsion 1 | . . 1 . . . Utility . | . . . . . . Weapon 1 | . . 1 . . . Parts Attached 40 | 21 12 . . 6 1 Power 3 | 2 1 . . . . Engine 3 | 2 1 . . . . Core . | . . . . . . Reactor . | . . . . . . Propulsion 22 | 16 3 . . 2 1 Treads . | . . . . . . Leg 13 | 8 3 . . 2 . Wheel 8 | 8 . . . . . Hover 1 | . . . . . 1 Flight . | . . . . . . Utility 7 | . 6 . . 1 . Device 3 | . 3 . . . . Storage 2 | . 2 . . . . Processor . | . . . . . . Hackware . | . . . . . . Protection 2 | . 1 . . 1 . Artifact . | . . . . . . Weapon 8 | 3 2 . . 3 . Energy Gun 3 | 1 1 . . 1 . Energy Cannon . | . . . . . . Ballistic Gun 3 | 2 1 . . . . Ballistic Cannon . | . . . . . . Launcher 1 | . . . . 1 . Special Weapon . | . . . . . . Impact Weapon . | . . . . . . Slashing Weapon . | . . . . . . Piercing Weapon 1 | . . . . 1 . Special Melee Weapon . | . . . . . . Unidentified Prototypes . | . . . . . . Parts Lost 10 | . 1 . . . 9 Power 2 | . 1 . . . 1 Propulsion 4 | . . . . . 4 Utility 2 | . . . . . 2 Weapon 2 | . . . . . 2 Highest Loss Streak 9 | . 1 . . . 9 To Critical Strikes . | . . . . . . Average Slot Usage (%) 96 | . 89 77 . 99 94 Engine 11 | . 13 11 . 11 10 Leg 31 | . 27 22 . 32 30 Device 12 | . 16 11 . 11 10 Protection 9 | . 1 11 . 11 10 Energy Gun 8 | . 13 11 . 8 . Ballistic Gun 11 | . 13 11 . 11 10 Launcher 8 | . . . . 10 10 Piercing Weapon 2 | . . . . 2 11 Naked Turns 5 | . 5 . . . . Heaviest Build 26 | 5 26 12 12 19 19 Greatest Support 40 | 20 20 20 20 40 40 Greatest Overweight (x) 1 | 1 1 . . . 1 Average Overweight (x) . | . . . . . . Largest Inventory Capacity 15 | 5 15 5 5 5 5 Average Capacity 5 | 5 6 5 5 5 5 Most Carried 5 | 5 5 5 4 5 5 Average Carried 4 | 2 4 4 4 4 4 Final Capacity 5 | 5 5 5 5 5 5 Final Carried 5 | 5 5 4 4 5 4 Class Distribution -------------------- 52% | Mutant 47% | Tank Dominant Class ---------------- Mutant | -10/Materials Mutant | -9/Materials Mutant | -9/Mines Tank | -7/Zion Mutant | -7/Deep Caves Resources | -11 -10 -9 -9 -7 -7 ----------- Run | Yrd Mat Mat Min Zio Dee Matter Collected 589 | 355 170 . . 60 4 Remotely . | . . . . . . Salvage Created 157 | 46 85 . . . 26 Parts 8 | 3 3 . . . 2 Haulers Intercepted . | . . . . . . Recyclers Shooed 1 | . 1 . . . . Parts Field Recycled . | . . . . . . Retrieved Matter . | . . . . . . Parts Self-Destructed 1 | . . . . 1 . Prevented . | . . . . . . Kills | -11 -10 -9 -9 -7 -7 ------- Run | Yrd Mat Mat Min Zio Dee Combat Hostiles Destroyed 3 | 1 2 . . . . Guns 3 | 1 2 . . . . Classes Destroyed 2 | 1 . . . . 1 Grunt 3 | 1 2 . . . . Z-Technician 2 | . . . . . 2 Best Kill Streak 2 | 1 2 . . . 2 Combat Bots Only 2 | 1 2 . . . . Max Kills in Single Turn 1 | 1 1 . . . 1 Gunslinging . | . . . . . . Exploded . | . . . . . . Melee . | . . . . . . Uniques/NPCs Destroyed . | . . . . . . Combat | -11 -10 -9 -9 -7 -7 -------- Run | Yrd Mat Mat Min Zio Dee Hostile Shots Fired 116 | 2 14 11 . . 89 Missed 52 | 1 5 5 . . 41 Damage Taken 1362 | 8 140 62 . . 1152 Core 444 | . 23 . . . 421 Absorbed by Shields . | . . . . . . Redirected to Shielding 3 | . . 3 . . . Ignored by Resistances 367 | 3 40 17 . . 307 Core Remaining (%) 95 | 100 90 . . . . Volleys Fired 16 | 2 9 . . . 5 Largest 2 | 2 2 . . . 2 Hottest 60 | 60 60 . . . 50 Shots Fired 28 | 4 18 . . . 6 Gun 27 | 4 18 . . . 5 Cannon . | . . . . . . Launcher 1 | . . . . . 1 Special . | . . . . . . Kinetic 16 | 2 9 . . . 5 Thermal 11 | 2 9 . . . . Explosive 1 | . . . . . 1 Electromagnetic . | . . . . . . Robot Hit Streak 19 | 2 19 . . . 3 Robot Miss Streak 1 | 1 . . . . 1 Penetration Max . | . . . . . . Secondary Targets . | . . . . . . Shots Hit Robots 25 | 3 18 . . . 4 Core Hits 11 | 2 7 . . . 2 Critical Kills . | . . . . . . Critical Parts Destroyed . | . . . . . . Critical Strikes . | . . . . . . Melee Attacks . | . . . . . . Impact . | . . . . . . Slashing . | . . . . . . Piercing . | . . . . . . Sneak Attacks . | . . . . . . Combat Hostiles . | . . . . . . Follow-up Attacks . | . . . . . . Damage Inflicted 268 | 39 179 . . . 50 Guns 231 | 39 171 . . . 21 Cannons . | . . . . . . Explosions 29 | . . . . . 29 Melee . | . . . . . . Ramming 8 | . 8 . . . . Kinetic 112 | 18 73 . . . 21 Thermal 119 | 21 98 . . . . Explosive 29 | . . . . . 29 Electromagnetic . | . . . . . . Impact . | . . . . . . Slashing . | . . . . . . Piercing . | . . . . . . Highest Corruption . | . . . . . . Average Corruption . | . . . . . . Corruption Purged . | . . . . . . Corruption Blocked . | . . . . . . Overload Shots . | . . . . . . Overflow Damage . | . . . . . . Projectiles . | . . . . . . Explosions . | . . . . . . Melee . | . . . . . . Knockbacks . | . . . . . . Impact . | . . . . . . Kinetic . | . . . . . . Secondary . | . . . . . . Self-Inflicted Damage 3 | . 3 . . . . Shots . | . . . . . . Rammed 2 | . 2 . . . . Targets Rammed 3 | . 3 . . . . Kicked 1 | . 1 . . . . Crushed . | . . . . . . Highest Temperature 52 | 46 52 . . . 32 Average Temperature 19 | 26 23 . . . 7 Received Heat Transfer 603 | 6 117 48 . . 432 Siege Activations . | . . . . . . Robots Corrupted . | . . . . . . Combat Hostiles . | . . . . . . Parts Fried . | . . . . . . Impact Corruptions . | . . . . . . Robots Melted . | . . . . . . Combat Hostiles . | . . . . . . Parts Melted . | . . . . . . Heat Transferred 275 | 50 225 . . . . Parts Sabotaged . | . . . . . . Parts Stolen . | . . . . . . Parts Stripped . | . . . . . . Power Chain Reactions . | . . . . . . Alert | -11 -10 -9 -9 -7 -7 ------- Run | Yrd Mat Mat Min Zio Dee Peak Influence 100 | 20 100 51 16 . . Initial 36 | . 11 36 16 . . Average 26 | 2 29 45 16 . . Maximum Alert Level . | . . . . . . Low Security (%) 100 | 100 100 100 100 . . Level 1 . | . . . . . . Level 2 . | . . . . . . Level 3 . | . . . . . . Level 4 . | . . . . . . Level 5 . | . . . . . . High Security . | . . . . . . Max Security . | . . . . . . Squads Dispatched . | . . . . . . Investigation . | . . . . . . Extermination . | . . . . . . Reinforcement . | . . . . . . Assault . | . . . . . . Garrison . | . . . . . . Intercept . | . . . . . . Searches Triggered . | . . . . . . Construction Impeded . | . . . . . . Haulers Reinforced . | . . . . . . Active Scanning Responses . | . . . . . . Cargo Convoy Interrupts . | . . . . . . Stealth | -11 -10 -9 -9 -7 -7 --------- Run | Yrd Mat Mat Min Zio Dee Distress Signals . | . . . . . . Communications Jammed . | . . . . . . Distress Signals . | . . . . . . Times Spotted 24 | 1 7 4 . . 12 Peak Tracking Total 11 | 1 4 4 . . 11 Tactical Retreats 1 | . 1 . . . . Traps | -11 -10 -9 -9 -7 -7 ------- Run | Yrd Mat Mat Min Zio Dee Traps Triggered 1 | . 1 . . . . Indirectly . | . . . . . . Trap Hack Attempts . | . . . . . . Triggered . | . . . . . . Disarmed . | . . . . . . Reprogrammed . | . . . . . . Reused . | . . . . . . Traps Extracted . | . . . . . . Installed . | . . . . . . Triggered . | . . . . . . Machines | -11 -10 -9 -9 -7 -7 ---------- Run | Yrd Mat Mat Min Zio Dee Machines Disabled . | . . . . . . Max in Single Turn . | . . . . . . Machines Repaired . | . . . . . . Machines Dismantled . | . . . . . . Machines Sabotaged . | . . . . . . Overloaded Fab Kills . | . . . . . . Hacking | -11 -10 -9 -9 -7 -7 --------- Run | Yrd Mat Mat Min Zio Dee Machines Accessed 5 | . 4 1 . . . Terminals 3 | . 3 . . . . Fabricators . | . . . . . . Repair Stations . | . . . . . . Recycling Units 2 | . 1 1 . . . Scanalyzers . | . . . . . . Garrison Access . | . . . . . . Total Hacks 29 | . 22 7 . . . Successful 24 | . 18 6 . . . Failed 5 | . 4 1 . . . Catastrophic . | . . . . . . Database Lockouts . | . . . . . . Manual 13 | . 5 . . 8 . Terminals 19 | . 19 . . . . Fabricators . | . . . . . . Repair Stations . | . . . . . . Recycling Units 10 | . 3 7 . . . Scanalyzers . | . . . . . . Garrison Access . | . . . . . . Terminal Hacks 15 | . 15 . . . . Record 12 | . 12 . . . . Emergency Access Points 1 | . 1 . . . . Alert Level 1 | . 1 . . . . Maintenance Status 1 | . 1 . . . . Fabricator Hacks . | . . . . . . Repair Station Hacks . | . . . . . . Recycling Unit Hacks 9 | . 3 6 . . . Recycle Component 2 | . 1 1 . . . Process 2 | . 1 1 . . . Report Inventory 3 | . 1 2 . . . Retrieve Matter 2 | . . 2 . . . Scanalyzer . | . . . . . . Garrison Access Hacks . | . . . . . . Unauthorized Hacks . | . . . . . . Terminals . | . . . . . . Fabricators . | . . . . . . Repair Stations . | . . . . . . Recycling Units . | . . . . . . Scanalyzers . | . . . . . . Garrison Access . | . . . . . . Data Cores Recovered . | . . . . . . Used . | . . . . . . Hacking Detections 3 | . 2 1 . . . Full Trace Events 1 | . 1 . . . . Feedback Events . | . . . . . . Feedback Blocked . | . . . . . . Robot Schematics Acquired . | . . . . . . Robots Built . | . . . . . . Authchips . | . . . . . . Time . | . . . . . . Total Robot Build Rating . | . . . . . . Part Schematics Acquired 4 | . . . . 4 . Parts Built . | . . . . . . Authchips . | . . . . . . Time . | . . . . . . Total Part Build Rating . | . . . . . . Parts Repaired . | . . . . . . Time . | . . . . . . Parts Recycled 2 | . 1 1 . . . Recycled Matter 64 | . 25 39 . . . Retrieved Matter 39 | . . 39 . . . Retrieved Components . | . . . . . . Parts Scanalyzed . | . . . . . . Part Schematics Acquired . | . . . . . . Parts Damaged . | . . . . . . Bothacking | -11 -10 -9 -9 -7 -7 ------------ Run | Yrd Mat Mat Min Zio Dee Used RIF Installer . | . . . . . . Robots Hacked . | . . . . . . Non-combat . | . . . . . . Combat . | . . . . . . Robot Hacks Applied . | . . . . . . Relay Couplers Released . | . . . . . . Fabnet Peak Effective % . | . . . . . . Robots Rewired . | . . . . . . Allies Hacked . | . . . . . . Hacks Repelled . | . . . . . . Allies | -11 -10 -9 -9 -7 -7 -------- Run | Yrd Mat Mat Min Zio Dee Total Allies 9 | . . . . 9 . Largest Group 9 | . . . . 9 4 Highest-Rated Group 253 | . . . . 253 82 Highest-Rated Ally 40 | . . . . 40 28 Total Orders . | . . . . . . Ally Attacks 33 | . . . . . 33 Total Damage 346 | . . . . . 346 Kills 3 | . . . . . 3 Allies Corrupted . | . . . . . . Allies Melted . | . . . . . . Intel | -11 -10 -9 -9 -7 -7 ------- Run | Yrd Mat Mat Min Zio Dee Robot Analysis Total . | . . . . . . Derelict Logs Recovered 2 | . . . . 2 . Drone Launches . | . . . . . . Drone Recoveries . | . . . . . . Exploration | -11 -10 -9 -9 -7 -7 ------------- Run | Yrd Mat Mat Min Zio Dee Turns Passed 3108 | 163 596 101 3 1987 258 Spaces Moved 2201 | 106 322 72 2 1483 216 Core 72 | 28 9 . . . 35 Treads . | . . . . . . Legs 2098 | 52 313 72 2 1483 176 Wheels 26 | 26 . . . . . Hover 5 | . . . . . 5 Flight . | . . . . . . Fastest Speed 50 | 50 50 120 120 120 50 Average Speed 121 | 96 127 120 120 122 112 Slowest Speed 190 | 120 190 120 120 126 130 Overloaded Moves . | . . . . . . Propulsion Burnouts . | . . . . . . Robots Hopped . | . . . . . . Cave-ins Triggered . | . . . . . . Exploration Rate (%) 32 | 6 43 4 6 90 44 Regions Visited 5 Branch Regions 3 Pre-discovered Areas 1 | . . . . 1 . Known Exits Taken . | . . . . . . Unknown Exits Taken 5 | 1 1 1 1 1 . Scrap Searched 2 | . . . . 2 . Spaces Dug . | . . . . . . Terrain Destroyed . | . . . . . . Melee . | . . . . . . Projectile . | . . . . . . AOE . | . . . . . . Terrain Rammed . | . . . . . . Walls Destroyed . | . . . . . . Machines Disabled . | . . . . . . Actions | -11 -10 -9 -9 -7 -7 --------- Run | Yrd Mat Mat Min Zio Dee Total 2631 | 171 498 86 2 1648 226 Wait 299 | 17 119 15 1 147 . Move 2196 | 105 321 71 1 1482 216 Hop . | . . . . . . Pick Up 42 | 10 22 . . 8 2 Fast Attach . | . . . . . . Attach 39 | 21 11 . . 6 1 Detach 16 | 16 . . . . . Swap 1 | . 1 . . . . Drop 19 | . 12 . . 5 2 Fire 16 | 2 9 . . . 5 Melee . | . . . . . . Ram 2 | . 2 . . . . Kick 1 | . 1 . . . . Crush . | . . . . . . Escape Stasis . | . . . . . . Rewire . | . . . . . . Trap . | . . . . . . Miscellaneous . | . . . . . . Route ------- -11/Scrapyard -10/Materials -9/Materials -9/Mines -7/Zion (discovered 2 exits: [*Dee] / [*Pro]) -7/Deep Caves History --------- Turn | Location | Event 2 | -11/Scrapyard | Met Revision 17 139 | -11/Scrapyard | Discovered new exit (range 8) 164 | -11/Scrapyard | Entered Materials 319 | -10/Materials | Build established: Mutant 656 | -10/Materials | Released all parts (6) 709 | -10/Materials | Discovered new exit (range 15) 760 | -10/Materials | Entered another Materials area 760 | -9/Materials | Evolved 2 slots: Propulsion x1, Weapon x1 760 | -9/Materials | Discovered new exit (range 7) 861 | -9/Materials | Entered Mines 862 | -9/Mines | A Derelict revealed a hidden shortcut to a safe place 864 | -9/Mines | Entered Zion 951 | -7/Zion | Given A8's code to call for help 1090 | -7/Zion | Discovered new exit (range 13) 1099 | -7/Zion | Acquired unknown access codes intercepted by a Zionite 1207 | -7/Zion | Build established: Tank 1267 | -7/Zion | Learned location of Quarantine (-3) 1375 | -7/Zion | Learned Factory stockpile data 1564 | -7/Zion | Imprinted 1566 | -7/Zion | Declared Zion's savior 1812 | -7/Zion | Learned location of 1 exit from Factory 2174 | -7/Zion | Gained Derelict followers 2378 | -7/Zion | Found CR-A16's Pointy Stick 2685 | -7/Zion | Build established: Mutant 2816 | -7/Zion | Opened final containment barrier to the Deep Caves 2836 | -7/Zion | Discovered new exit (range 5) 2839 | -7/Zion | Saw the warning signs outside the Deep Caves entrance 2851 | -7/Zion | Entered Deep Caves 2851 | -7/Deep Caves | Accompanied by 7 allies 3042 | -7/Deep Caves | Attacked by Z-Imprinter 3051 | -7/Deep Caves | Z-Facility disabled 3084 | -7/Deep Caves | Lost 4 allies 3096 | -7/Deep Caves | Core integrity fell below 50% 3102 | -7/Deep Caves | Core integrity fell below 20% 3109 | -7/Deep Caves | Destroyed by Z-Imprinter with Zionite Laser-M Last Messages --------------- you ruin everything! 3Q-ZZG(i) destroyed. Z-Facility disabled. Aluminum Leg destroyed. Hrd. Light Armor Plating destroyed. Grenade Launcher destroyed. Ion Engine destroyed. Different forms of propulsion may not be used simultaneously, Aluminum Leg automatically deactivated. Mak. Leg destroyed. Hover Unit destroyed. ECM Suite destroyed. Lgt. Assault Rifle destroyed. Aluminum Leg destroyed. [Achievement: First Step to Greatness] The achievement interface (ESC then open Records) offers an effective way to explore all of your earned achievements as well as seek out new goals for future runs. Map ----- +----------------------------------------------------+ | # | | """ """ # | | """"""""""""" | | """""""""""" | | """"""""""""" | | """""""" | | """"""""""""" | | """""""""""""" | | """"""""""""" # | | """""""""""" % # | | """""""" " " % # | | """""""""% % %! ! | | """""""" ! | | """""""""% | | """""""""= ! # | | """"""""""" ! % # | | """"""""""""% * | | """""" | | """""" """ # | | """""" """"" ## | | """""" """"""" #? | | """" """"""" # | | """" """"""" | | """" """"" | | """" """ # | | """" @= # | | """""""""""I # | | """""""" ! | | | | | | | | ? | | ? ??? | | ? ????? | | ? ##### ???????? | | ??## ### ####????## ?????????? | | ???# ??## ##?????????????????????? | | ???###????### #####??????????????????????? | | ????????????###########??????????????????????????? | | ?????????????????????????????????????????????????? | | | | | | | | | | | | | | | | | | | | | +----------------------------------------------------+ Best States ------------- Heat Dissipation 28 Energy Generation 10 Energy Capacity 250 Matter Stores 301 Matter Capacity 350 Sight Range 16 Terrain Scan Density 10 ECM Strength 1 Armor Coverage 150 Resistance: KI 20 Resistance: TH 20 Resistance: EX 20 Resistance: EM 20 Resistance: I 20 Resistance: S 20 Resistance: P 20 Utility Shielding 33 Evasion (%) 55 Offensive Hacking 10 Item Schematics ----------------- Adv. Terrain Scan Processor | -7/Zion | Archive Adv. Sensor Array | -7/Zion | Archive Mak. Axe | -7/Zion | Archive Thermic Laser | -7/Zion | Archive Robot Schematics ------------------ None Fabricated ------------ Nothing Alien Tech Used ----------------- None Achievements -------------- Adventurer Crack Shot First Step to Greatness Librarian Maximum Efficiency Robot Respite Signs Are For Wimps The More The Merrier The One Tourist Challenges ------------ None Game ------ Seed DeepFactoryKinecellerator Manual? 0 Play Time 02:14:33 Cumulative 2.1 hours Start 2024.04.02 @ 20:21:02 End 2024.04.02 @ 23:38:22 Sessions 5 Manual Loads 0 Difficulty Adventurer Special Mode None Game No. 1 Rogue 0 Adventurer 1 Explorer 0 Win Type - Total 0 Types 0/0/0/0/0/0/0/0/0 Lore% 4 Gallery% 2 Achievement% 3 Wizard Run 0 Options --------- Layout 1 ASCII 0 Keyboard 0 Movement Numpad Keybinds 0 Fullscreen 2 Font 24/Smallcaps Map View 50x35 Zoom Use 27% Tactical HUD 0 Map Filters NONE Filters NONE Steam 0 RUN: 028a4155-5e6c-460b-9fa0-da19d7a05637